fUSD/lending_fUSD_20250521
["ID","MTS","AMOUNT","RATE_DAILY","PERIOD"]
[361841682,1747828251376,-1944.05,0.00037808,5]
[361841683,1747828251386,-445.9,0.00037808,5]
[361841684,1747828251396,-3204.8,0.00037808,5]
[361841685,1747828251406,-420.0,0.00037808,5]
[361841686,1747828251415,-420.0,0.00037808,5]
[361841687,1747828251425,-737.12,0.00037808,5]
[361841688,1747828251435,-420.0,0.00037808,5]
[361841689,1747828251445,-5048.72,0.00037808,5]
[361841690,1747828251456,-880.48,0.00037808,5]
[361841691,1747828251466,-420.0,0.00037808,5]
[361841692,1747828251476,-170.1,0.00037808,2]
[361841693,1747828251486,-4967.13521016,0.00037912,4]
[361841694,1747828251495,-1000.0,0.00037922,7]
[361841695,1747828251505,-4967.13521016,0.00038072,4]
[361841696,1747828251515,-420.0,0.00038082,5]
[361841697,1747828251524,-420.0,0.00038082,5]
[361841698,1747828251533,-420.0,0.00038082,5]
[361841699,1747828251543,-503.66,0.00038082,5]
[361841700,1747828251658,-646.58,0.00038082,5]
[361841701,1747828251669,-834.6,0.00038082,5]
[361841702,1747828251679,-1944.05,0.00038082,5]
[361841703,1747828251690,-445.9,0.00038082,5]
[361841704,1747828251700,-3204.8,0.00038082,5]
[361841705,1747828251710,-193.53,0.00038082,5]
[361841706,1747828251720,-402.91,0.00038082,5]
[361841707,1747828251730,-737.12,0.00038082,5]
[361841708,1747828251740,-420.0,0.00038082,5]
[361841709,1747828251749,-5048.72,0.00038082,5]
[361841710,1747828251761,-880.48,0.00038082,5]
[361841711,1747828251771,-420.0,0.00038082,5]
[361841712,1747828251781,-151.32,0.000381,14]
[361841713,1747828251791,-873.03380299,0.00038109,7]
[361841714,1747828251801,-637.11,0.00038125,2]
[361841715,1747828251811,-1000.0,0.00038178,7]
[361841716,1747828251820,-4967.13521016,0.00038284,4]
[361841717,1747828251830,-1000.0,0.00038294,7]
[361841718,1747828251840,-4967.13521016,0.00038346,4]
[361841719,1747828251851,-431.0,0.00038356,5]
[361841720,1747828251861,-477.245,0.00038356,7]
[361841721,1747828251870,-420.0,0.00038356,5]
[361841722,1747828251880,-415.35957993,0.00038356,5]
[361841723,1747828251889,-420.0,0.00038356,5]
[361841724,1747828251900,-503.66,0.00038356,5]
[361841725,1747828251910,-646.58,0.00038356,5]
[361841726,1747828251920,-834.6,0.00038356,5]
[361841727,1747828251931,-1944.05,0.00038356,5]
[361841728,1747828251941,-445.9,0.00038356,5]
[361841729,1747828251951,-3204.8,0.00038356,5]
[361841730,1747828251962,-737.12,0.00038356,5]
[361841731,1747828251972,-420.0,0.00038356,5]
[361841732,1747828251982,-5048.72,0.00038356,5]
[361841733,1747828251992,-880.48,0.00038356,5]
[361841734,1747828252002,-420.0,0.00038356,5]
[361841735,1747828252013,-168.08,0.00038356,4]
[361841736,1747828252022,-311.26,0.00038367,120]
[361841737,1747828252032,-208.5737353,0.000384,38]
[361841738,1747828252042,-1000.0,0.00038417,2]
[361841739,1747828252052,-1000.0,0.00038418,7]
[361841740,1747828252063,-451.67,0.000385,2]
[361841741,1747828252073,-4967.13521016,0.00038582,4]
[361841742,1747828252084,-1008.73816969,0.00038592,7]
[361841743,1747828252094,-4967.13521016,0.0003862,4]
[361841744,1747828252106,-455.05,0.00038629,5]
[361841745,1747828252116,-500.0,0.00038629,5]
[361841746,1747828252127,-311.112535,0.0003863,5]
[361841747,1747828252137,-334.28,0.0003863,5]
[361841748,1747828252147,-503.66,0.0003863,5]
[361841749,1747828252157,-646.58,0.0003863,5]
[361841750,1747828252168,-834.6,0.0003863,5]
[361841751,1747828252179,-1944.05,0.0003863,5]
[361841752,1747828252189,-445.9,0.0003863,5]
[361841753,1747828252198,-3204.8,0.0003863,5]
[361841754,1747828252208,-737.12,0.0003863,5]
[361841755,1747828252219,-420.0,0.0003863,5]
[361841756,1747828252228,-5048.72,0.0003863,5]
[361841757,1747828252238,-880.48,0.0003863,5]
[361841758,1747828252249,-420.0,0.0003863,5]
[361841759,1747828252259,-433.44170334,0.00038682,2]
[361841760,1747828252269,-1000.0,0.00038704,7]
[361841761,1747828252278,-4967.13521016,0.00038842,4]
[361841762,1747828252288,-1000.0,0.00038852,7]
[361841763,1747828252298,-169.54223486,0.00038873,15]
[361841764,1747828252307,-987.76183031,0.00038901,7]
[361841765,1747828252317,-503.66,0.00038904,5]
[361841766,1747828252328,-646.58,0.00038904,5]
[361841767,1747828252338,-834.6,0.00038904,5]
[361841768,1747828252348,-1944.05,0.00038904,5]
[361841769,1747828252357,-445.9,0.00038904,5]
[361841770,1747828252367,-3204.8,0.00038904,5]
[361841771,1747828252377,-737.12,0.00038904,5]
[361841772,1747828252387,-383.80000001,0.00038904,5]
[361841773,1747828252397,-5048.72,0.00038904,5]
[361841774,1747828252406,-880.48,0.00038904,5]
[361841775,1747828252416,-420.0,0.00038904,5]
[361841776,1747828252427,-1000.0,0.00038926,7]
[361841777,1747828252436,-1000.0,0.00038928,7]
[361841778,1747828252446,-1000.0,0.0003893,7]
[361841779,1747828252456,-151.0,0.00039,120]
[361841780,1747828252466,-210.31733108,0.00039076,60]
[361841781,1747828252475,-987.76183031,0.0003914,7]
[361841782,1747828252485,-1000.0,0.00039168,7]
[361841783,1747828252495,-503.88,0.00039178,5]
[361841784,1747828252506,-646.78,0.00039178,5]
[361841785,1747828252515,-834.75447136,0.00039178,5]
[361841786,1747828252525,-1944.19367712,0.00039178,5]
[361841787,1747828252536,-445.99829422,0.00039178,5]
[361841788,1747828252545,-3204.97,0.00039178,5]
[361841789,1747828252555,-737.28285206,0.00039178,5]
[361841790,1747828252564,-5048.92604313,0.00039178,5]
[361841791,1747828252574,-880.69067297,0.00039178,5]
[361841792,1747828252584,-361.44,0.00039178,5]
[361841793,1747828252594,-1246.54,0.00039178,5]
[361841794,1747828252604,-150.0,0.00039205,5]
[361841795,1747828252613,-150.0,0.00039205,5]
[361841796,1747828252623,-234.80444016,0.00039205,5]
[361841797,1747828252633,-150.0,0.00039205,5]
[361841798,1747828252643,-154.58813608,0.00039205,5]
[361841799,1747828252653,-500.0,0.00039205,5]
[361841800,1747828252663,-150.0,0.00039205,5]
[361841801,1747828252673,-200.0,0.00039232,5]
[361841802,1747828252682,-200.0,0.00039232,5]
[361841803,1747828252692,-200.0,0.00039232,5]
[361841804,1747828252702,-500.0,0.00039232,5]
[361841805,1747828252712,-150.0,0.00039232,5]
[361841806,1747828252722,-500.0,0.0003926,5]
[361841807,1747828252732,-150.0,0.0003926,5]
[361841808,1747828252742,-500.0,0.00039287,5]
[361841809,1747828252752,-150.0,0.00039287,5]
[361841810,1747828252762,-178.40903417,0.00039315,5]
[361841811,1747828252772,-1000.0,0.00039347,7]
[361841812,1747828252782,-1000.0,0.00039429,7]
[361841813,1747828252792,-1000.0,0.0003948,7]
[361841814,1747828252801,-1012.23816969,0.00039649,7]
[361841815,1747828252811,-451.67,0.000398,2]
[361841816,1747828252821,-1000.0,0.00039855,7]
[361841817,1747828252830,-150.0,0.00039973,7]
[361841818,1747828252840,-172.76267257,0.00039973,7]
[361841819,1747828252850,-150.0,0.00039973,7]
[361841820,1747828252860,-209.71192027,0.00039973,7]
[361841821,1747828252870,-158.46391963,0.00039973,7]
[361841822,1747828252880,-150.0,0.00039973,7]
[361841823,1747828252889,-500.0,0.00039999,5]
[361841824,1747828252899,-50000.0,0.0004,40]
[361841825,1747828252909,-5000.0,0.0004,5]
[361841826,1747828252920,-5000.0,0.0004,30]
[361841827,1747828252929,-433.44170334,0.00040021,28]
[361841828,1747828252939,-1000.0,0.00040102,7]
[361841829,1747828252949,-150.0,0.0004024,7]
[361841830,1747828252959,-423.4157474,0.00040248,20]
[361841831,1747828252969,-1000.0,0.00040355,7]
[361841832,1747828252980,-637.11,0.00040389,2]
[361841833,1747828252991,-169.54223486,0.00040448,15]
[361841834,1747828253001,-1000.0,0.00040463,7]
[361841835,1747828253011,-208.5737353,0.000405,42]
[361841836,1747828253021,-150.0,0.00040507,7]
[361841837,1747828253031,-1000.0,0.00040537,7]
[361841838,1747828253040,-170.36300023,0.00040584,14]
[361841839,1747828253050,-1000.0,0.00040693,7]
[361841840,1747828253061,-1000.0,0.000407,7]
[361841841,1747828253071,-1059.085828,0.00040739,4]
[361841842,1747828253081,-16000.0,0.00040766,2]
[361841843,1747828253092,-150.0,0.00040774,7]
[361841844,1747828253103,-1000.0,0.00040781,7]
[361841845,1747828253113,-438.24332549,0.00040794,7]
[361841846,1747828253123,-1000.0,0.00040805,7]
[361841847,1747828253132,-1000.0,0.00040895,7]
[361841848,1747828253143,-50000.0,0.00041,41]
[361841849,1747828253152,-738.48526263,0.00041,120]
[361841850,1747828253162,-310.92,0.00041,120]
[361841851,1747828253172,-312.14,0.00041,120]
[361841852,1747828253181,-737.48827979,0.00041,120]
[361841853,1747828253191,-302.84,0.00041,120]
[361841854,1747828253201,-739.12126181,0.00041,120]
[361841855,1747828253210,-309.58,0.00041,120]
[361841856,1747828253220,-215.68900902,0.00041,120]
[361841857,1747828253230,-742.5016736,0.00041,120]
[361841858,1747828253239,-731.2275142,0.00041,120]
[361841859,1747828253249,-430.0,0.00041,120]
[361841860,1747828253260,-600.0,0.00041,120]
[361841861,1747828253270,-150.0,0.00041041,7]
[361841862,1747828253280,-500.0,0.00041094,5]
[361841863,1747828253291,-633.53,0.00041095,120]
[361841864,1747828253300,-633.53,0.00041095,120]
[361841865,1747828253310,-633.53,0.00041095,120]
[361841866,1747828253320,-633.53,0.00041095,120]
[361841867,1747828253330,-633.53,0.00041095,120]
[361841868,1747828253340,-633.53,0.00041095,120]
[361841869,1747828253352,-633.53,0.00041095,120]
[361841870,1747828253363,-633.53,0.00041095,120]
[361841871,1747828253372,-633.53,0.00041095,120]
[361841872,1747828253382,-633.53,0.00041095,120]
[361841873,1747828253392,-633.53,0.00041095,120]
[361841874,1747828253401,-633.53,0.00041095,120]
[361841875,1747828253411,-633.53,0.00041095,120]
[361841876,1747828253421,-633.53,0.00041095,120]
[361841877,1747828253430,-633.53,0.00041095,120]
[361841878,1747828253440,-633.53,0.00041095,120]
[361841879,1747828253450,-633.53,0.00041095,120]
[361841880,1747828253459,-633.53,0.00041095,120]
[361841881,1747828253469,-633.53,0.00041095,120]
[361841882,1747828253479,-633.53,0.00041095,120]
[361841883,1747828253489,-633.53,0.00041095,120]
[361841884,1747828253501,-633.53,0.00041095,120]
[361841885,1747828253511,-633.53,0.00041095,120]
[361841886,1747828253521,-633.70688168,0.00041095,120]
[361841887,1747828253532,-516.80903344,0.00041096,5]
[361841888,1747828253543,-340.14,0.00041096,2]
[361841889,1747828253554,-150.34,0.00041096,2]
[361841890,1747828253564,-1754.80811093,0.000411,2]
[361841891,1747828253574,-519.45718834,0.00041116,30]
[361841892,1747828253583,-150.0,0.00041125,2]
[361841893,1747828253593,-1000.0,0.00041141,14]
[361841894,1747828253603,-979.29121973,0.00041176,14]
[361841895,1747828253613,-1000.0,0.00041212,14]
[361841896,1747828253624,-150.0,0.00041217,14]
[361841897,1747828253633,-150.0,0.00041219,2]
[361841898,1747828253643,-150.0,0.00041262,14]
[361841899,1747828253653,-150.0,0.00041309,30]
[361841900,1747828253663,-1000.0,0.00041354,14]
[361841901,1747828253672,-433.44170334,0.00041361,28]
[361841902,1747828253682,-200.0,0.00041383,120]
[361841903,1747828253692,-150.0,0.00041386,2]
[361841904,1747828253701,-150.0,0.00041398,2]
[361841905,1747828253711,-150.0,0.0004141,14]
[361841906,1747828253722,-150.0,0.00041414,14]
[361841907,1747828253732,-150.0,0.00041421,2]
[361841908,1747828253741,-150.0,0.00041434,2]
[361841909,1747828253751,-150.0,0.00041442,30]
[361841910,1747828253760,-150.0,0.00041443,2]
[361841911,1747828253771,-150.0,0.00041544,2]
[361841912,1747828253780,-150.0,0.00041548,2]
[361841913,1747828253790,-150.0,0.00041572,2]
[361841914,1747828253799,-150.0,0.00041576,30]
[361841915,1747828253808,-864.76119748,0.00041696,2]
[361841916,1747828253818,-1000.0,0.00041733,14]
[361841917,1747828253830,-150.0,0.00041755,2]
[361841918,1747828253839,-150.0,0.00041759,2]
[361841919,1747828253849,-150.0,0.00041766,2]
[361841920,1747828254100,-150.0,0.00041814,2]
[361841921,1747828254111,-150.0,0.00041834,14]
[361841922,1747828254120,-150.0,0.00041843,30]
[361841923,1747828254131,-1000.0,0.00041872,14]
[361841924,1747828254141,-150.0,0.00041876,2]
[361841925,1747828254150,-150.0,0.00041886,2]
[361841926,1747828254161,-152.89891998,0.0004193,14]
[361841927,1747828254172,-150.0,0.00041953,2]
[361841928,1747828254182,-1132.07854636,0.00041957,2]
[361841929,1747828254194,-41294.27157496,0.00041957,2]
[361841930,1747828254204,-644.3190534,0.00041958,120]
[361841931,1747828254215,-200.0,0.00041973,10]
[361841932,1747828254226,-150.0,0.00041973,10]
[361841933,1747828254236,-8000.0,0.00041985,60]
[361841934,1747828254246,-253.39427995,0.00041989,5]
[361841935,1747828254257,-610.56,0.00041989,5]
[361841936,1747828254266,-169028.25316199,0.00041992,2]
[361841937,1747828254378,-2549.56183174,0.00041992,2]
[361841938,1747828254393,-7843.09510607,0.00041992,2]
[361841939,1747828254403,-858.37870746,0.00041992,2]
[361841940,1747828254412,-6436.86866,0.00041992,2]
[361841941,1747828254421,-5353.2074971,0.00041995,2]
[361841942,1747828254431,-20330.7989371,0.00041995,2]
[361841943,1747828254440,-218.13356511,0.00041998,60]
[361841944,1747828254451,-1000.0,0.00041999,120]
[361841945,1747828254463,-151.0,0.00041999,120]
[361841946,1747828254473,-200.0,0.00041999,120]
[361841947,1747828254483,-156.0,0.00041999,30]
[361841948,1747828254493,-500.0,0.00041999,120]
[361841949,1747828254503,-1037.0,0.00041999,120]
[361841950,1747828254512,-151.0,0.00041999,120]
[361841951,1747828254521,-207.4,0.00041999,120]
[361841952,1747828254531,-518.5,0.00041999,120]
[361841953,1747828254541,-500.0,0.00041999,120]
[361841954,1747828254550,-1075.369,0.00041999,120]
[361841955,1747828254560,-151.0,0.00041999,120]
[361841956,1747828254569,-215.0738,0.00041999,120]
[361841957,1747828254579,-518.5,0.00041999,120]
[361841958,1747828254589,-537.6845,0.00041999,120]
[361841959,1747828254599,-1115.157653,0.00041999,120]
[361841960,1747828254609,-223.0315306,0.00041999,120]
[361841961,1747828254618,-557.5788265,0.00041999,120]
[361841962,1747828254628,-151.0,0.00041999,120]
[361841963,1747828254637,-537.6845,0.00041999,120]
[361841964,1747828254647,-1156.41848616,0.00041999,120]
[361841965,1747828254657,-231.28369723,0.00041999,120]
[361841966,1747828254667,-151.0,0.00041999,120]
[361841967,1747828254677,-578.20924308,0.00041999,120]
[361841968,1747828254686,-250.79131466,0.00041999,120]
[361841969,1747828254696,-557.5788265,0.00041999,120]
[361841970,1747828254705,-1199.20597015,0.00041999,120]
[361841971,1747828254715,-239.84119403,0.00041999,120]
[361841972,1747828254724,-599.60298507,0.00041999,120]
[361841973,1747828254734,-578.20924308,0.00041999,120]
[361841974,1747828254744,-1227.05463836,0.00041999,120]
[361841975,1747828254753,-248.71531821,0.00041999,120]
[361841976,1747828254763,-621.78829552,0.00041999,120]
[361841977,1747828254772,-257.91778498,0.00041999,120]
[361841978,1747828254781,-644.79446246,0.00041999,120]
[361841979,1747828254791,-599.60298507,0.00041999,120]
[361841980,1747828254800,-267.46074303,0.00041999,120]
[361841981,1747828254811,-668.65185757,0.00041999,120]
[361841982,1747828254820,-621.78829552,0.00041999,120]
[361841983,1747828254830,-277.35679052,0.00041999,120]
[361841984,1747828254839,-693.3919763,0.00041999,120]
[361841985,1747828254851,-644.79446246,0.00041999,120]
[361841986,1747828254862,-287.61899177,0.00041999,120]
[361841987,1747828254873,-719.04747942,0.00041999,120]
[361841988,1747828254884,-668.65185757,0.00041999,120]
[361841989,1747828254896,-160.47639263,0.00041999,120]
[361841990,1747828254906,-298.26089446,0.00041999,120]
[361841991,1747828254916,-156.82112962,0.00041999,120]
[361841992,1747828254926,-349.18100063,0.00041999,120]
[361841993,1747828254936,-309.29654756,0.00041999,120]
[361841994,1747828254946,-320.74051982,0.00041999,120]
[361841995,1747828254955,-332.60791905,0.00041999,120]
[361841996,1747828254966,-344.91441206,0.00041999,120]
[361841997,1747828254976,-357.6762453,0.00041999,120]
[361841998,1747828254986,-370.91026638,0.00041999,120]
[361841999,1747828254995,-384.63394623,0.00041999,120]
[361842000,1747828255005,-398.86540225,0.00041999,120]
[361842001,1747828255016,-151.0,0.00041999,120]
[361842002,1747828255026,-156.587,0.00041999,120]
[361842003,1747828255036,-162.380719,0.00041999,120]
[361842004,1747828255046,-168.3888056,0.00041999,120]
[361842005,1747828255056,-174.61919141,0.00041999,120]
[361842006,1747828255067,-239.68396872,0.00041999,120]
[361842007,1747828255076,-33946.62576649,0.00042,42]
[361842008,1747828255130,-26.25472212,0.00042,42]
[361842009,1747828255143,-16027.11951139,0.00042,42]
[361842010,1747828255154,-25537.34961089,0.00042,30]
[361842011,1747828255166,-1227.98738991,0.00042,30]
[361842012,1747828255180,-754.32475265,0.00042,30]
[361842013,1747828255191,-293.75433028,0.00042,30]
[361842014,1747828255207,-715.23,0.00035616,5]
[361842015,1747828255218,-968.2363252,0.00042,30]
[361842016,1747828255283,-715.23,0.0003589,5]
[361842017,1747828255293,-683.94500003,0.00036164,5]
[361842018,1747828255304,-31.28499997,0.00036164,5]
[361842019,1747828255314,-715.23,0.00036438,5]
[361842020,1747828255324,-715.23,0.00036712,5]
[361842021,1747828255333,-715.23,0.00036986,5]
[361842022,1747828255343,-715.23,0.0003726,5]
[361842023,1747828255352,-715.23,0.00037534,5]
[361842024,1747828255361,-654.86500003,0.00037808,5]
[361842025,1747828255373,-60.36499997,0.00037808,5]
[361842026,1747828255383,-472.68500003,0.00038082,5]
[361842027,1747828255398,-242.54499997,0.00038082,5]
[361842028,1747828255409,-715.23,0.00038356,5]
[361842029,1747828255419,-311690.18896141,0.00042,30]
[361842030,1747828255429,-536.94342361,0.00042,30]
[361842031,1747828255439,-632.90749974,0.00042,30]
[361842032,1747828255449,-5000.0,0.00042,90]
[361842033,1747828255459,-280.0,0.00042,120]
[361842034,1747828255469,-151.16,0.00042,5]
[361842035,1747828255478,-1581.78869919,0.00042,30]
[361842036,1747828255489,-6056.0,0.00042,30]
[361842037,1747828255500,-208.14530905,0.00042,10]
[361842038,1747828255511,-3385.6605078,0.00042,2]
[361842039,1747828255521,-150.0,0.00042,120]
[361842040,1747828255531,-5000.0,0.00042,120]
[361842041,1747828255540,-5085.70681668,0.00042,30]
[361842042,1747828255549,-34514.0,0.00042,30]
[361842043,1747828255559,-10960.53994291,0.00042,120]
[361842044,1747828255571,-97039.47005709,0.00042,120]
[361842045,1747828255582,-4828.43134902,0.00042,120]
[361842046,1747828255596,-511.37620639,0.00042,120]
[361842047,1747828255611,-5281.51948143,0.00042,120]
[361842048,1747828255620,-60.14251857,0.00042,120]
[361842050,1747829042798,200.0,0.00020548,117]
[361842052,1747829386129,-150.35,0.00013699,2]
[361842053,1747829386155,-200.0,0.00020548,2]
[361842054,1747829386179,-200.0,0.00023298,2]
[361842055,1747829386210,-200.0,0.0002693,2]
[361842056,1747829386236,-150.35,0.00027397,2]
[361842057,1747829386262,-200.0,0.00027916,117]
[361842058,1747829386288,-300.0,0.00032875,3]
[361842059,1747829386312,-150.0,0.00032875,2]
[361842060,1747829386338,-246.44051904,0.00032876,5]
[361842061,1747829386363,-292.31855282,0.00032876,5]
[361842062,1747829386387,-420.0,0.00032876,5]
[361842063,1747829386411,-420.0,0.00032876,5]
[361842064,1747829386435,-440.0,0.00032876,5]
[361842065,1747829386461,-420.0,0.00032876,5]
[361842066,1747829386489,-420.0,0.00032876,5]
[361842067,1747829386514,-400.0,0.00032876,5]
[361842068,1747829386538,-400.0,0.00032876,5]
[361842069,1747829386564,-400.0,0.00032876,5]
[361842070,1747829386588,-420.0,0.00032876,5]
[361842071,1747829386612,-416.63259612,0.00032876,5]
[361842072,1747829386637,-420.0,0.00032876,5]
[361842073,1747829386660,-400.0,0.00032876,5]
[361842074,1747829386685,-420.0,0.00032876,5]
[361842075,1747829386715,-400.0,0.00032876,5]
[361842076,1747829386741,-400.0,0.00032876,5]
[361842077,1747829386766,-420.0,0.00032876,5]
[361842078,1747829386791,-400.0,0.00032876,5]
[361842079,1747829386821,-400.0,0.00032876,5]
[361842080,1747829386845,-400.0,0.00032876,5]
[361842081,1747829386872,-414.82597448,0.00032876,5]
[361842082,1747829386897,-400.0,0.00032876,5]
[361842083,1747829386921,-420.0,0.00032876,5]
[361842084,1747829386946,-420.0,0.00032876,5]
[361842085,1747829386970,-420.0,0.00032876,5]
[361842086,1747829386995,-420.0,0.00032876,5]
[361842087,1747829387019,-420.0,0.00032876,5]
[361842088,1747829387044,-420.0,0.00032876,5]
[361842089,1747829387069,-420.0,0.00032876,5]
[361842090,1747829387093,-400.0,0.00032876,5]
[361842091,1747829387117,-420.0,0.00032876,5]
[361842092,1747829387142,-420.0,0.00032876,5]
[361842094,1747829387167,-420.0,0.00032876,5]
[361842095,1747829387191,-420.0,0.00032876,5]
[361842096,1747829387217,-420.0,0.00032876,5]
[361842097,1747829387248,-420.0,0.00032876,5]
[361842098,1747829387273,-420.0,0.00032876,5]
[361842099,1747829387298,-420.0,0.00032876,5]
[361842100,1747829387323,-459.94,0.00032876,5]
[361842101,1747829387347,-420.0,0.00032876,5]
[361842102,1747829387372,-420.0,0.00032876,5]
[361842103,1747829387397,-420.0,0.00032876,5]
[361842104,1747829387421,-420.0,0.00032876,5]
[361842105,1747829387445,-420.0,0.00032876,5]
[361842106,1747829387471,-420.0,0.00032876,5]
[361842107,1747829387496,-420.0,0.00032876,5]
[361842108,1747829387521,-420.0,0.00032876,5]
[361842109,1747829387546,-420.0,0.00032876,5]
[361842110,1747829387572,-420.0,0.00032876,5]
[361842111,1747829387597,-420.0,0.00032876,5]
[361842112,1747829387623,-422.22152496,0.00032876,5]
[361842113,1747829387650,-420.0,0.00032876,5]
[361842114,1747829387674,-420.0,0.00032876,5]
[361842115,1747829387701,-804.63,0.00032876,5]
[361842116,1747829387726,-420.0,0.00032876,5]
[361842117,1747829387762,-521.75,0.00032876,5]
[361842118,1747829387791,-420.0,0.00032876,5]
[361842119,1747829387817,-420.0,0.00032876,5]
[361842120,1747829387844,-161.28,0.00032876,5]
[361842121,1747829387868,-745.2014,0.00032876,2]
[361842122,1747829387893,-176.73,0.0003315,5]
[361842123,1747829387918,-420.0,0.0003315,5]
[361842124,1747829387942,-453.19,0.0003315,5]
[361842125,1747829387967,-420.0,0.0003315,5]
[361842126,1747829387993,-420.0,0.0003315,5]
[361842127,1747829388018,-204.33,0.0003315,5]
[361842128,1747829388043,-559.69,0.0003315,5]
[361842129,1747829388069,-420.0,0.0003315,5]
[361842130,1747829388093,-514.85,0.0003315,5]
[361842131,1747829388118,-420.0,0.0003315,5]
[361842132,1747829388143,-410.79,0.0003315,5]
[361842133,1747829388171,-294.81,0.0003315,5]
[361842134,1747829388195,-335.2,0.0003315,5]
[361842135,1747829388221,-197.51,0.0003315,5]
[361842136,1747829388248,-420.0,0.0003315,5]
[361842137,1747829388272,-420.0,0.0003315,5]
[361842138,1747829388297,-153.61,0.0003315,5]
[361842139,1747829388321,-804.63,0.0003315,5]
[361842140,1747829388347,-420.0,0.0003315,5]
[361842141,1747829388372,-256.08,0.0003315,5]
[361842142,1747829388398,-420.0,0.0003315,5]
[361842143,1747829388432,-420.0,0.00033424,5]
[361842144,1747829388457,-224.58,0.00033424,5]
[361842145,1747829388486,-420.0,0.00033424,5]
[361842146,1747829388511,-420.0,0.00033424,5]
[361842147,1747829388535,-474.73,0.00033424,5]
[361842148,1747829388562,-420.0,0.00033424,5]
[361842149,1747829388587,-420.0,0.00033424,5]
[361842150,1747829388613,-804.63,0.00033424,5]
[361842151,1747829388638,-420.0,0.00033424,5]
[361842152,1747829388664,-420.0,0.00033424,5]
[361842153,1747829388689,-547.82,0.00033698,5]
[361842154,1747829388714,-420.0,0.00033698,5]
[361842155,1747829388739,-561.26798632,0.00033698,5]
[361842156,1747829388763,-420.0,0.00033698,5]
[361842157,1747829388791,-420.0,0.00033698,5]
[361842158,1747829388814,-804.63,0.00033698,5]
[361842159,1747829388839,-420.0,0.00033698,5]
[361842160,1747829388864,-420.0,0.00033698,5]
[361842161,1747829388889,-302.35,0.00033734,2]
[361842162,1747829388913,-301.47,0.00033778,2]
[361842163,1747829388938,-301.01,0.00033781,2]
[361842164,1747829388963,-305.02,0.00033781,2]
[361842165,1747829388988,-301.13,0.00033781,2]
[361842166,1747829389013,-300.86,0.00033781,2]
[361842167,1747829389038,-300.7,0.00033781,2]
[361842168,1747829389063,-304.54,0.00033781,2]
[361842169,1747829389089,-305.28,0.00033781,2]
[361842170,1747829389114,-300.1,0.00033781,2]
[361842171,1747829389139,-302.22,0.00033781,2]
[361842172,1747829389165,-303.88,0.00033781,2]
[361842173,1747829389191,-301.94,0.00033781,2]
[361842174,1747829389218,-303.75,0.00033781,2]
[361842175,1747829389243,-301.62,0.00033781,2]
[361842176,1747829389269,-304.36,0.00033793,2]
[361842177,1747829389296,-304.04,0.00033793,2]
[361842178,1747829389321,-304.61,0.00033817,2]
[361842179,1747829389347,-304.95,0.00033817,2]
[361842180,1747829389373,-301.74,0.00033817,2]
[361842181,1747829389402,-304.48,0.00033852,2]
[361842182,1747829389433,-302.38,0.00033858,2]
[361842183,1747829389471,-300.62,0.00033858,2]
[361842184,1747829389502,-300.43,0.00033876,2]